[Event "*** Titled Tuesday Blitz"]
[Site "Chess.com"]
[Date "2021.04.06"]
[Round "11"]
[White "Vincent_Vega95"]
[Black "Chessmasterzt"]
[Result "1/2-1/2"]
[WhiteElo "2709"]
[BlackElo "2609"]
[TimeControl "180+1"]
[EndTime "12:08:21 PDT"]
[Termination "Game drawn by stalemate"]

1. d4 {[%clk 0:03:00.9]} 1... d6 {[%clk 0:02:59.7]} 2. c4 {[%clk 0:03:01.5]}
2... e5 {[%clk 0:02:59.3]} 3. Nf3 {[%clk 0:03:02.1]} 3... Nd7 {[%clk 0:02:54.7]}
4. e4 {[%clk 0:03:01.8]} 4... Ngf6 {[%clk 0:02:54.6]} 5. Nc3 {[%clk 0:03:02.4]}
5... g6 {[%clk 0:02:55.1]} 6. Be2 {[%clk 0:03:02.3]} 6... Bg7 {[%clk 0:02:55.3]}
7. O-O {[%clk 0:03:03]} 7... O-O {[%clk 0:02:55.5]} 8. Be3 {[%clk 0:03:01.5]}
8... Re8 {[%clk 0:02:48.9]} 9. d5 {[%clk 0:03:00.8]} 9... Nh5 {[%clk 0:02:43.3]}
10. g3 {[%clk 0:02:59.9]} 10... Bf6 {[%clk 0:02:35.1]} 11. Qd2 {[%clk
0:02:58.4]} 11... a6 {[%clk 0:02:27.3]} 12. Ne1 {[%clk 0:02:58.3]} 12... Ng7
{[%clk 0:02:27]} 13. Nd3 {[%clk 0:02:58.1]} 13... Be7 {[%clk 0:02:25.4]} 14. b4
{[%clk 0:02:56.3]} 14... f5 {[%clk 0:02:23.3]} 15. f3 {[%clk 0:02:56.6]} 15...
Rf8 {[%clk 0:02:13.6]} 16. c5 {[%clk 0:02:52]} 16... h5 {[%clk 0:02:02.4]} 17.
a4 {[%clk 0:02:32.5]} 17... h4 {[%clk 0:01:56.1]} 18. Kg2 {[%clk 0:02:32.4]}
18... Nf6 {[%clk 0:01:38.3]} 19. c6 {[%clk 0:02:19]} 19... b6 {[%clk 0:01:22.3]}
20. Bg5 {[%clk 0:02:18.2]} 20... h3+ {[%clk 0:01:17.6]} 21. Kg1 {[%clk
0:02:11.9]} 21... Nxd5 {[%clk 0:01:10.5]} 22. Nxd5 {[%clk 0:02:00.5]} 22... Bxg5
{[%clk 0:01:10]} 23. f4 {[%clk 0:02:01]} 23... Bf6 {[%clk 0:00:56.7]} 24. fxe5
{[%clk 0:01:54.2]} 24... Bxe5 {[%clk 0:00:53.7]} 25. Nxe5 {[%clk 0:01:38]} 25...
dxe5 {[%clk 0:00:54.6]} 26. Qc3 {[%clk 0:01:38.4]} 26... Be6 {[%clk 0:00:33.4]}
27. Rad1 {[%clk 0:01:30.4]} 27... Bxd5 {[%clk 0:00:25.2]} 28. Rxd5 {[%clk
0:01:31.3]} 28... Qg5 {[%clk 0:00:25.3]} 29. Bc4 {[%clk 0:01:23.9]} 29... Kh8
{[%clk 0:00:23.2]} 30. Rxe5 {[%clk 0:01:17.1]} 30... Rae8 {[%clk 0:00:18.5]} 31.
exf5 {[%clk 0:01:11.2]} 31... Rxe5 {[%clk 0:00:14.6]} 32. Qxe5 {[%clk
0:01:11.5]} 32... Rxf5 {[%clk 0:00:11.9]} 33. Rxf5 {[%clk 0:01:10.4]} 33... gxf5
{[%clk 0:00:12]} 34. Qf4 {[%clk 0:00:59.7]} 34... Qxf4 {[%clk 0:00:10.4]} 35.
gxf4 {[%clk 0:01:00.6]} 35... a5 {[%clk 0:00:10.8]} 36. bxa5 {[%clk 0:01:00.7]}
36... bxa5 {[%clk 0:00:11.7]} 37. Kf2 {[%clk 0:01:01.1]} 37... Nh5 {[%clk
0:00:09.1]} 38. Kf3 {[%clk 0:00:57.6]} 38... Kg7 {[%clk 0:00:09.3]} 39. Bf1
{[%clk 0:00:57.7]} 39... Kf6 {[%clk 0:00:09.3]} 40. Bxh3 {[%clk 0:00:58.2]}
40... Ng7 {[%clk 0:00:08.5]} 41. Bg2 {[%clk 0:00:54.1]} 41... Ne6 {[%clk
0:00:08.7]} 42. Bf1 {[%clk 0:00:47.3]} 42... Nd4+ {[%clk 0:00:08.3]} 43. Ke3
{[%clk 0:00:47.8]} 43... Nxc6 {[%clk 0:00:09.2]} 44. h4 {[%clk 0:00:45.4]} 44...
Kg6 {[%clk 0:00:05.8]} 45. Be2 {[%clk 0:00:45.2]} 45... Kf6 {[%clk 0:00:03]} 46.
h5 {[%clk 0:00:44.6]} 46... Nd8 {[%clk 0:00:03.1]} 47. Kd4 {[%clk 0:00:44.7]}
47... Ne6+ {[%clk 0:00:03.4]} 48. Kc4 {[%clk 0:00:36.7]} 48... Nxf4 {[%clk
0:00:02.8]} 49. Bf3 {[%clk 0:00:37.1]} 49... Ne6 {[%clk 0:00:02.3]} 50. Bd5
{[%clk 0:00:34.3]} 50... Nf4 {[%clk 0:00:01.4]} 51. Bf3 {[%clk 0:00:33.2]} 51...
Ne6 {[%clk 0:00:01.3]} 52. Kd5 {[%clk 0:00:32.6]} 52... Nf4+ {[%clk 0:00:01.1]}
53. Kc6 {[%clk 0:00:31.9]} 53... Nd3 {[%clk 0:00:01.6]} 54. Kb5 {[%clk
0:00:27.7]} 54... Nb2 {[%clk 0:00:02]} 55. Kxa5 {[%clk 0:00:26.5]} 55... Nxa4
{[%clk 0:00:02.9]} 56. Kxa4 {[%clk 0:00:26.3]} 56... c5 {[%clk 0:00:02.9]} 57.
Kb3 {[%clk 0:00:26.5]} 57... c4+ {[%clk 0:00:03.8]} 58. Kxc4 {[%clk 0:00:27.2]}
58... f4 {[%clk 0:00:04.5]} 59. Kd4 {[%clk 0:00:27.6]} 59... Kg5 {[%clk
0:00:04.8]} 60. Ke5 {[%clk 0:00:28.1]} 60... Kh6 {[%clk 0:00:05.7]} 61. Kf6
{[%clk 0:00:28.6]} 61... Kh7 {[%clk 0:00:05.9]} 62. Kg5 {[%clk 0:00:28.6]} 62...
Kh8 {[%clk 0:00:06.8]} 63. h6 {[%clk 0:00:26.1]} 63... Kh7 {[%clk 0:00:06.9]}
64. Kh5 {[%clk 0:00:26.6]} 64... Kh8 {[%clk 0:00:07.2]} 65. Kg6 {[%clk
0:00:27.1]} 65... Kg8 {[%clk 0:00:07.6]} 66. h7+ {[%clk 0:00:25.6]} 66... Kh8
{[%clk 0:00:07.7]} 67. Kh6 {[%clk 0:00:24.8]} 1/2-1/2

[Event "*** Titled Tuesday Blitz"]
[Site "Chess.com"]
[Date "2021.04.06"]
[Round "11"]
[White "onnoelgersma"]
[Black "PavelChernomordik"]
[Result "0-1"]
[WhiteElo "2410"]
[BlackElo "2345"]
[TimeControl "180+1"]
[EndTime "12:08:23 PDT"]
[Termination "PavelChernomordik won on time"]

1. d4 {[%clk 0:03:00.9]} 1... g6 {[%clk 0:02:59.2]} 2. Nf3 {[%clk 0:03:01]} 2...
Bg7 {[%clk 0:02:58.9]} 3. h4 {[%clk 0:03:01.3]} 3... h6 {[%clk 0:02:52.9]} 4. e4
{[%clk 0:02:55.1]} 4... d6 {[%clk 0:02:49.2]} 5. Nc3 {[%clk 0:02:53.1]} 5... a6
{[%clk 0:02:47.2]} 6. a4 {[%clk 0:02:52.2]} 6... b6 {[%clk 0:02:46.7]} 7. Bf4
{[%clk 0:02:46.4]} 7... Bb7 {[%clk 0:02:41.9]} 8. Qd2 {[%clk 0:02:41.5]} 8...
Nd7 {[%clk 0:02:41.1]} 9. Bc4 {[%clk 0:02:25.5]} 9... e6 {[%clk 0:02:40.4]} 10.
O-O {[%clk 0:02:23.7]} 10... Ne7 {[%clk 0:02:38.9]} 11. b4 {[%clk 0:02:18.5]}
11... d5 {[%clk 0:02:30.3]} 12. exd5 {[%clk 0:02:15.5]} 12... Nxd5 {[%clk
0:02:23.9]} 13. Nxd5 {[%clk 0:02:14.1]} 13... exd5 {[%clk 0:02:16.3]} 14. Rfe1+
{[%clk 0:02:11.8]} 14... Kf8 {[%clk 0:02:16]} 15. Bb3 {[%clk 0:02:11.3]} 15...
c5 {[%clk 0:02:10.6]} 16. bxc5 {[%clk 0:02:06.9]} 16... bxc5 {[%clk 0:02:09.3]}
17. dxc5 {[%clk 0:02:07.4]} 17... Bxa1 {[%clk 0:01:54]} 18. Bd6+ {[%clk
0:02:05.7]} 18... Kg8 {[%clk 0:01:53.3]} 19. Rxa1 {[%clk 0:02:05.7]} 19... Nf6
{[%clk 0:01:47.6]} 20. Qd4 {[%clk 0:01:52.2]} 20... Kh7 {[%clk 0:01:29.4]} 21.
Re1 {[%clk 0:01:23.7]} 21... Re8 {[%clk 0:01:18.6]} 22. Rxe8 {[%clk 0:00:55.6]}
22... Nxe8 {[%clk 0:01:14.9]} 23. Be5 {[%clk 0:00:50.9]} 23... Rc8 {[%clk
0:01:05.9]} 24. h5 {[%clk 0:00:49.4]} 24... Qe7 {[%clk 0:01:00]} 25. hxg6+
{[%clk 0:00:32.3]} 25... fxg6 {[%clk 0:00:59.3]} 26. Qg4 {[%clk 0:00:27.4]}
26... Rxc5 {[%clk 0:00:50.7]} 27. Bd4 {[%clk 0:00:27.6]} 27... Rc7 {[%clk
0:00:47.6]} 28. c3 {[%clk 0:00:26.9]} 28... Bc8 {[%clk 0:00:44.4]} 29. Qf4
{[%clk 0:00:25.1]} 29... Be6 {[%clk 0:00:32.5]} 30. Bc2 {[%clk 0:00:24.4]} 30...
Bf7 {[%clk 0:00:31.1]} 31. Ne5 {[%clk 0:00:19.5]} 31... Qg5 {[%clk 0:00:23.9]}
32. Qxg5 {[%clk 0:00:08.8]} 32... hxg5 {[%clk 0:00:23.2]} 33. Nf3 {[%clk
0:00:09.3]} 33... g4 {[%clk 0:00:19.8]} 34. Ne5 {[%clk 0:00:09.8]} 34... Be6
{[%clk 0:00:18]} 35. Nd3 {[%clk 0:00:09.2]} 35... Nd6 {[%clk 0:00:16]} 36. Nf4
{[%clk 0:00:09.4]} 36... Bf7 {[%clk 0:00:15]} 37. Kf1 {[%clk 0:00:08]} 37... Ne4
{[%clk 0:00:14.3]} 38. Bxe4 {[%clk 0:00:06.2]} 38... dxe4 {[%clk 0:00:13.9]} 39.
Ke2 {[%clk 0:00:06.6]} 39... Rc4 {[%clk 0:00:13.7]} 40. Ke3 {[%clk 0:00:05.5]}
40... Rxa4 {[%clk 0:00:13.4]} 41. Kxe4 {[%clk 0:00:05.4]} 41... Ra2 {[%clk
0:00:12.9]} 42. f3 {[%clk 0:00:05.5]} 42... g3 {[%clk 0:00:11.9]} 43. Ke3 {[%clk
0:00:05.4]} 43... Rc2 {[%clk 0:00:09.9]} 44. Bf6 {[%clk 0:00:05.2]} 44... a5
{[%clk 0:00:09.3]} 45. Kd3 {[%clk 0:00:05.5]} 45... Rf2 {[%clk 0:00:08.5]} 46.
Bh4 {[%clk 0:00:05.1]} 46... a4 {[%clk 0:00:07.4]} 47. Bxg3 {[%clk 0:00:05.6]}
47... Rb2 {[%clk 0:00:08]} 48. Bh4 {[%clk 0:00:05.1]} 48... a3 {[%clk
0:00:07.6]} 49. Bf6 {[%clk 0:00:03.3]} 49... Rb6 {[%clk 0:00:07.4]} 50. Bd4
{[%clk 0:00:02.8]} 50... a2 {[%clk 0:00:06.7]} 51. c4 {[%clk 0:00:03.2]} 51...
Rd6 {[%clk 0:00:07.1]} 52. Nd5 {[%clk 0:00:02.5]} 52... Bxd5 {[%clk 0:00:06.4]}
0-1

[Event "*** Titled Tuesday Blitz"]
[Site "Chess.com"]
[Date "2021.04.06"]
[Round "11"]
[White "hleol"]
[Black "Nicolas_Chess10"]
[Result "0-1"]
[WhiteElo "2338"]
[BlackElo "2443"]
[TimeControl "180+1"]
[EndTime "12:08:29 PDT"]
[Termination "Nicolas_Chess10 won by resignation"]

1. d4 {[%clk 0:03:00.9]} 1... Nf6 {[%clk 0:02:59.8]} 2. c4 {[%clk 0:03:01.5]}
2... e6 {[%clk 0:03:00.3]} 3. Nc3 {[%clk 0:03:01.9]} 3... Bb4 {[%clk 0:03:00.2]}
4. e3 {[%clk 0:03:02.5]} 4... O-O {[%clk 0:02:59.7]} 5. Bd3 {[%clk 0:03:03.1]}
5... d5 {[%clk 0:02:58.1]} 6. a3 {[%clk 0:03:03]} 6... Bxc3+ {[%clk 0:02:53.7]}
7. bxc3 {[%clk 0:03:03.9]} 7... b6 {[%clk 0:02:53]} 8. cxd5 {[%clk 0:03:03.7]}
8... exd5 {[%clk 0:02:52.9]} 9. Ne2 {[%clk 0:03:04.2]} 9... Ba6 {[%clk
0:02:53.3]} 10. O-O {[%clk 0:03:04.8]} 10... Bxd3 {[%clk 0:02:49.3]} 11. Qxd3
{[%clk 0:03:05.7]} 11... c5 {[%clk 0:02:46.6]} 12. Ng3 {[%clk 0:03:06]} 12...
Re8 {[%clk 0:02:43.6]} 13. f3 {[%clk 0:03:05]} 13... Nc6 {[%clk 0:02:38.3]} 14.
Bb2 {[%clk 0:03:03.9]} 14... c4 {[%clk 0:02:22.9]} 15. Qd2 {[%clk 0:03:03.2]}
15... Na5 {[%clk 0:02:22.7]} 16. Rae1 {[%clk 0:03:01.4]} 16... Nb3 {[%clk
0:02:22.3]} 17. Qf2 {[%clk 0:03:01.2]} 17... Qd7 {[%clk 0:02:14.7]} 18. e4
{[%clk 0:02:55.7]} 18... Rf8 {[%clk 0:02:10.8]} 19. e5 {[%clk 0:02:54.1]} 19...
Ne8 {[%clk 0:02:10.8]} 20. f4 {[%clk 0:02:54.6]} 20... f5 {[%clk 0:02:09]} 21.
Re3 {[%clk 0:02:25.7]} 21... Qe6 {[%clk 0:02:07.9]} 22. Nh5 {[%clk 0:02:13.6]}
22... g6 {[%clk 0:02:04.3]} 23. Ng3 {[%clk 0:02:05.5]} 23... Ng7 {[%clk
0:02:03.9]} 24. Nh1 {[%clk 0:01:57.1]} 24... Qe7 {[%clk 0:01:58.8]} 25. Rh3
{[%clk 0:01:56.3]} 25... Ne6 {[%clk 0:01:58.5]} 26. Qe3 {[%clk 0:01:49.6]} 26...
h5 {[%clk 0:01:51.8]} 27. Ng3 {[%clk 0:01:44.6]} 27... h4 {[%clk 0:01:51.7]} 28.
Ne2 {[%clk 0:01:43.1]} 28... Kg7 {[%clk 0:01:51.6]} 29. Qf2 {[%clk 0:01:35.6]}
29... Rh8 {[%clk 0:01:50.7]} 30. Qe3 {[%clk 0:01:11.5]} 30... Raf8 {[%clk
0:01:49.6]} 31. Kh1 {[%clk 0:01:09.2]} 31... a5 {[%clk 0:01:46.6]} 32. Ng1
{[%clk 0:01:08.7]} 32... Kf7 {[%clk 0:01:40.6]} 33. Nf3 {[%clk 0:01:08.1]} 33...
Ke8 {[%clk 0:01:41.1]} 34. a4 {[%clk 0:00:46.5]} 34... Rfg8 {[%clk 0:01:31.4]}
35. Ng5 {[%clk 0:00:45.5]} 35... Nxg5 {[%clk 0:01:23.9]} 36. fxg5 {[%clk
0:00:46.4]} 36... Rh5 {[%clk 0:01:24.5]} 37. Qf3 {[%clk 0:00:43.1]} 37... Qe6
{[%clk 0:01:21.1]} 38. Qf4 {[%clk 0:00:43.3]} 38... Rgh8 {[%clk 0:01:17.8]} 39.
Ba3 {[%clk 0:00:43.6]} 39... Kd7 {[%clk 0:01:11.9]} 40. Bd6 {[%clk 0:00:43.3]}
40... Kc6 {[%clk 0:01:10.7]} 41. Qe3 {[%clk 0:00:36.6]} 41... Kb7 {[%clk
0:01:07.7]} 42. Re1 {[%clk 0:00:32.7]} 42... R8h7 {[%clk 0:01:07.1]} 43. Qf4
{[%clk 0:00:32.9]} 43... Rh8 {[%clk 0:01:03]} 44. Qe3 {[%clk 0:00:32.2]} 44...
Re8 {[%clk 0:01:01.3]} 45. Qf4 {[%clk 0:00:31.5]} 45... Qxd6 {[%clk 0:00:59.9]}
46. Qf3 {[%clk 0:00:27.3]} 46... Qc6 {[%clk 0:00:52.3]} 47. Qf4 {[%clk 0:00:22]}
47... Qxa4 {[%clk 0:00:50.5]} 48. Rxh4 {[%clk 0:00:21.7]} 48... Rxh4 {[%clk
0:00:49.5]} 49. Qxh4 {[%clk 0:00:22.6]} 49... Re7 {[%clk 0:00:45.7]} 50. Qh8
{[%clk 0:00:21.9]} 50... Qc6 {[%clk 0:00:44.8]} 51. Qf8 {[%clk 0:00:21.5]} 51...
Qe6 {[%clk 0:00:44.3]} 52. Qd8 {[%clk 0:00:19.8]} 52... Rd7 {[%clk 0:00:43.3]}
53. Qf8 {[%clk 0:00:18.1]} 53... Qe7 {[%clk 0:00:36]} 54. Qf6 {[%clk 0:00:18.7]}
54... a4 {[%clk 0:00:27.6]} 55. e6 {[%clk 0:00:19.1]} 55... Rc7 {[%clk
0:00:26.2]} 56. Qxg6 {[%clk 0:00:19.6]} 56... a3 {[%clk 0:00:25.4]} 57. Qf6
{[%clk 0:00:19]} 57... a2 {[%clk 0:00:25.1]} 58. Qe5 {[%clk 0:00:17.2]} 58...
a1=Q {[%clk 0:00:23.9]} 59. Rxa1 {[%clk 0:00:17.7]} 59... Nxa1 {[%clk
0:00:24.3]} 60. g6 {[%clk 0:00:18.6]} 60... Nb3 {[%clk 0:00:17.6]} 61. Qxd5+
{[%clk 0:00:19]} 61... Rc6 {[%clk 0:00:17.9]} 62. Qd7+ {[%clk 0:00:17.7]} 62...
Qxd7 {[%clk 0:00:17.4]} 63. exd7 {[%clk 0:00:18.6]} 63... Kc7 {[%clk 0:00:17.7]}
64. g7 {[%clk 0:00:18.8]} 64... Rg6 {[%clk 0:00:17.8]} 65. h4 {[%clk 0:00:18.3]}
65... Rxg7 {[%clk 0:00:18.1]} 66. h5 {[%clk 0:00:18.7]} 66... Kxd7 {[%clk
0:00:18.4]} 67. Kh2 {[%clk 0:00:19.3]} 67... Rh7 {[%clk 0:00:18.8]} 68. Kh3
{[%clk 0:00:20]} 68... Rxh5+ {[%clk 0:00:19.4]} 69. Kg3 {[%clk 0:00:20.9]} 69...
Rg5+ {[%clk 0:00:20]} 70. Kf4 {[%clk 0:00:21.8]} 70... Rxg2 {[%clk 0:00:19.9]}
71. Kxf5 {[%clk 0:00:22.7]} 71... Re2 {[%clk 0:00:20.1]} 72. Kf4 {[%clk
0:00:22.9]} 72... Nc1 {[%clk 0:00:20.3]} 0-1

[Event "*** Titled Tuesday Blitz"]
[Site "Chess.com"]
[Date "2021.04.06"]
[Round "11"]
[White "Xeniya2005"]
[Black "eduardoperalta"]
[Result "1-0"]
[WhiteElo "2351"]
[BlackElo "2473"]
[TimeControl "180+1"]
[EndTime "12:08:34 PDT"]
[Termination "Xeniya2005 won by resignation"]

1. e4 {[%clk 0:03:00.9]} 1... c5 {[%clk 0:02:58.9]} 2. Nf3 {[%clk 0:03:00.7]}
2... Nc6 {[%clk 0:02:58.3]} 3. Bb5 {[%clk 0:02:59.7]} 3... g6 {[%clk 0:02:56.8]}
4. O-O {[%clk 0:02:54.2]} 4... Bg7 {[%clk 0:02:56.4]} 5. c3 {[%clk 0:02:52.6]}
5... Nf6 {[%clk 0:02:55.2]} 6. Re1 {[%clk 0:02:50.6]} 6... O-O {[%clk
0:02:54.5]} 7. d4 {[%clk 0:02:47.9]} 7... cxd4 {[%clk 0:02:54.2]} 8. cxd4 {[%clk
0:02:46.8]} 8... d5 {[%clk 0:02:54.3]} 9. e5 {[%clk 0:02:46]} 9... Ne4 {[%clk
0:02:52.7]} 10. Bxc6 {[%clk 0:02:44.4]} 10... bxc6 {[%clk 0:02:52.1]} 11. Be3
{[%clk 0:02:44.8]} 11... Rb8 {[%clk 0:02:50.7]} 12. Qc1 {[%clk 0:02:41.2]} 12...
Bg4 {[%clk 0:02:47.4]} 13. Nfd2 {[%clk 0:02:38.7]} 13... Nxd2 {[%clk 0:02:43.6]}
14. Nxd2 {[%clk 0:02:29.3]} 14... Qb6 {[%clk 0:02:42.4]} 15. Nb3 {[%clk
0:02:25.5]} 15... a5 {[%clk 0:02:39.2]} 16. h3 {[%clk 0:02:22.2]} 16... Bf5
{[%clk 0:02:38]} 17. Re2 {[%clk 0:02:22.1]} 17... f6 {[%clk 0:02:30]} 18. e6
{[%clk 0:02:10.3]} 18... g5 {[%clk 0:02:23.9]} 19. Nc5 {[%clk 0:02:05.5]} 19...
Qb5 {[%clk 0:02:22.9]} 20. Qd1 {[%clk 0:01:52.3]} 20... Rfd8 {[%clk 0:02:17.7]}
21. Rc1 {[%clk 0:01:49.5]} 21... Rbc8 {[%clk 0:02:11]} 22. Rc3 {[%clk
0:01:46.8]} 22... g4 {[%clk 0:01:58.6]} 23. hxg4 {[%clk 0:01:41.4]} 23... Bxg4
{[%clk 0:01:57.8]} 24. f3 {[%clk 0:01:41.1]} 24... Bf5 {[%clk 0:01:56.7]} 25. g4
{[%clk 0:01:35.1]} 25... Bg6 {[%clk 0:01:55.2]} 26. f4 {[%clk 0:01:31.2]} 26...
f5 {[%clk 0:01:53.9]} 27. Rb3 {[%clk 0:01:16.8]} 27... Qc4 {[%clk 0:01:37.5]}
28. Rc2 {[%clk 0:01:14.4]} 28... fxg4 {[%clk 0:01:21]} 29. Rxc4 {[%clk
0:01:12.8]} 29... dxc4 {[%clk 0:01:20.9]} 30. Rb7 {[%clk 0:01:11]} 30... h5
{[%clk 0:01:16.8]} 31. Rxe7 {[%clk 0:01:07]} 31... Bf6 {[%clk 0:01:16.6]} 32.
Rd7 {[%clk 0:01:06.3]} 32... Re8 {[%clk 0:01:16.1]} 33. Qf1 {[%clk 0:01:02.5]}
33... Bf5 {[%clk 0:01:14.3]} 34. Qxc4 {[%clk 0:01:01.4]} 34... h4 {[%clk
0:01:10.4]} 35. Qe2 {[%clk 0:00:55]} 35... Rb8 {[%clk 0:01:04.1]} 36. Rf7 {[%clk
0:00:47.9]} 36... Rf8 {[%clk 0:01:00]} 37. Rxf8+ {[%clk 0:00:46.5]} 37... Rxf8
{[%clk 0:00:58.1]} 38. Nd7 {[%clk 0:00:41.4]} 38... Bxe6 {[%clk 0:00:55.3]} 39.
Nxf8 {[%clk 0:00:38.8]} 39... Kxf8 {[%clk 0:00:55]} 40. Bf2 {[%clk 0:00:35.2]}
40... Kf7 {[%clk 0:00:53]} 41. Qe4 {[%clk 0:00:29.2]} 41... g3 {[%clk
0:00:51.5]} 42. Qh7+ {[%clk 0:00:27.2]} 42... Ke8 {[%clk 0:00:48.2]} 43. Qc7
{[%clk 0:00:19.8]} 43... gxf2+ {[%clk 0:00:46]} 44. Kxf2 {[%clk 0:00:19.8]}
44... Bxd4+ {[%clk 0:00:44.6]} 45. Kf3 {[%clk 0:00:18.9]} 45... Bd5+ {[%clk
0:00:44.4]} 46. Kg4 {[%clk 0:00:19]} 46... a4 {[%clk 0:00:40.6]} 47. Kxh4 {[%clk
0:00:17]} 47... Bf6+ {[%clk 0:00:39.1]} 48. Kg4 {[%clk 0:00:16.7]} 48... Bd8
{[%clk 0:00:38]} 49. Qe5+ {[%clk 0:00:15.3]} 49... Kd7 {[%clk 0:00:36.8]} 50.
Qd4 {[%clk 0:00:12.1]} 50... Kc7 {[%clk 0:00:33.7]} 51. Qxa4 {[%clk 0:00:12.1]}
51... Bf6 {[%clk 0:00:32.2]} 52. b3 {[%clk 0:00:11.6]} 52... Kd6 {[%clk
0:00:30.7]} 53. Qb4+ {[%clk 0:00:11.1]} 53... Ke6 {[%clk 0:00:30.4]} 54. f5+
{[%clk 0:00:10.8]} 54... Kf7 {[%clk 0:00:25.5]} 55. Qb7+ {[%clk 0:00:10.5]}
55... Kf8 {[%clk 0:00:24.7]} 56. Qc8+ {[%clk 0:00:10.1]} 56... Kf7 {[%clk
0:00:24]} 57. Qd7+ {[%clk 0:00:10]} 57... Be7 {[%clk 0:00:21.3]} 58. a4 {[%clk
0:00:08]} 58... Kf6 {[%clk 0:00:21]} 59. a5 {[%clk 0:00:07.9]} 59... Bxb3 {[%clk
0:00:20.9]} 60. Qxc6+ {[%clk 0:00:07.6]} 60... Kf7 {[%clk 0:00:19.5]} 61. a6
{[%clk 0:00:07.5]} 61... Bd1+ {[%clk 0:00:19.3]} 62. Kf4 {[%clk 0:00:07.4]}
62... Bd8 {[%clk 0:00:18.1]} 63. a7 {[%clk 0:00:07.2]} 1-0

[Event "*** Titled Tuesday Blitz"]
[Site "Chess.com"]
[Date "2021.04.06"]
[Round "11"]
[White "Michaelson_11"]
[Black "shaheus"]
[Result "0-1"]
[WhiteElo "2199"]
[BlackElo "2357"]
[TimeControl "180+1"]
[EndTime "12:08:35 PDT"]
[Termination "shaheus won on time"]

1. e4 {[%clk 0:03:00.5]} 1... c5 {[%clk 0:02:59.4]} 2. Nf3 {[%clk 0:02:47.4]}
2... Nc6 {[%clk 0:02:58.5]} 3. d4 {[%clk 0:02:48.3]} 3... cxd4 {[%clk
0:02:58.5]} 4. Nxd4 {[%clk 0:02:49.2]} 4... Nf6 {[%clk 0:02:59]} 5. Nc3 {[%clk
0:02:45.9]} 5... d6 {[%clk 0:02:58.5]} 6. Bg5 {[%clk 0:02:42.8]} 6... e6 {[%clk
0:02:58.3]} 7. Qd2 {[%clk 0:02:40.1]} 7... a6 {[%clk 0:02:57.2]} 8. O-O-O {[%clk
0:02:36.2]} 8... h6 {[%clk 0:02:57.3]} 9. Bxf6 {[%clk 0:02:30.4]} 9... Qxf6
{[%clk 0:02:56]} 10. Nxc6 {[%clk 0:02:27.8]} 10... bxc6 {[%clk 0:02:56.1]} 11.
f3 {[%clk 0:02:11.5]} 11... Be7 {[%clk 0:02:53.2]} 12. Bc4 {[%clk 0:02:04.7]}
12... O-O {[%clk 0:02:49.6]} 13. h4 {[%clk 0:02:01.2]} 13... d5 {[%clk 0:02:46]}
14. Bd3 {[%clk 0:01:46.2]} 14... Bb4 {[%clk 0:02:39.7]} 15. g4 {[%clk
0:01:39.4]} 15... d4 {[%clk 0:02:22.9]} 16. g5 {[%clk 0:01:36]} 16... dxc3
{[%clk 0:02:22]} 17. Qg2 {[%clk 0:01:29.9]} 17... cxb2+ {[%clk 0:02:20.6]} 18.
Kb1 {[%clk 0:01:28.4]} 18... Qf4 {[%clk 0:02:12]} 19. gxh6 {[%clk 0:01:20.1]}
19... Qxh6 {[%clk 0:02:11.2]} 20. e5 {[%clk 0:01:14.3]} 20... c5 {[%clk
0:01:57.7]} 21. Rhg1 {[%clk 0:01:03.6]} 21... Bb7 {[%clk 0:01:54.5]} 22. Qg4
{[%clk 0:00:55.3]} 22... Bd5 {[%clk 0:01:44.4]} 23. f4 {[%clk 0:00:35.5]} 23...
c4 {[%clk 0:01:31.3]} 24. Be2 {[%clk 0:00:32.3]} 24... Bc5 {[%clk 0:01:29.3]}
25. Rg3 {[%clk 0:00:24.5]} 25... Bf2 {[%clk 0:01:20.5]} 26. Rc3 {[%clk
0:00:13.9]} 26... Rfc8 {[%clk 0:01:14.2]} 27. h5 {[%clk 0:00:12]} 27... Rab8
{[%clk 0:01:10.9]} 28. f5 {[%clk 0:00:11.6]} 28... Be3 {[%clk 0:00:52.8]} 29. f6
{[%clk 0:00:06.9]} 29... Qg5 {[%clk 0:00:50.4]} 30. Qh3 {[%clk 0:00:06.6]} 30...
Bc1 {[%clk 0:00:41.4]} 31. Rg3 {[%clk 0:00:05.2]} 31... Qxe5 {[%clk 0:00:35.4]}
32. Rxg7+ {[%clk 0:00:03.4]} 32... Kf8 {[%clk 0:00:35.4]} 33. Rdg1 {[%clk
0:00:03.2]} 33... Qxf6 {[%clk 0:00:34.4]} 34. Rg8+ {[%clk 0:00:03]} 34... Ke7
{[%clk 0:00:34.7]} 35. R8g7 {[%clk 0:00:02.9]} 35... c3 {[%clk 0:00:30.1]} 36.
Qd3 {[%clk 0:00:02.3]} 36... Bc4 {[%clk 0:00:27.8]} 37. Qe4 {[%clk 0:00:01.6]}
37... Qf5 {[%clk 0:00:25.2]} 38. Qxf5 {[%clk 0:00:01.4]} 38... exf5 {[%clk
0:00:25]} 39. Bf3 {[%clk 0:00:01.5]} 39... Be6 {[%clk 0:00:23.1]} 40. h6 {[%clk
0:00:01.4]} 40... Rh8 {[%clk 0:00:23]} 41. h7 {[%clk 0:00:01.1]} 41... Be3
{[%clk 0:00:20.8]} 42. Bh5 {[%clk 0:00:01.3]} 42... Bd4 {[%clk 0:00:20.2]} 43.
R1g2 {[%clk 0:00:01.1]} 43... Bxg7 {[%clk 0:00:19.6]} 44. Rxg7 {[%clk 0:00:02]}
44... Kf6 {[%clk 0:00:19.2]} 45. Rg3 {[%clk 0:00:01.7]} 45... Rxh7 {[%clk
0:00:18.8]} 46. Rh3 {[%clk 0:00:01.9]} 46... Rxh5 {[%clk 0:00:18.1]} 47. Rxh5
{[%clk 0:00:01.7]} 47... Rd8 {[%clk 0:00:17.9]} 48. Rh6+ {[%clk 0:00:01.8]}
48... Kg5 {[%clk 0:00:17.6]} 49. Rh1 {[%clk 0:00:02.4]} 49... Rd2 {[%clk
0:00:16.5]} 50. a4 {[%clk 0:00:02.2]} 50... Rd4 {[%clk 0:00:15.5]} 51. a5 {[%clk
0:00:02]} 51... Ra4 {[%clk 0:00:15.2]} 52. Rg1+ {[%clk 0:00:02]} 52... Kf6
{[%clk 0:00:14.2]} 53. Rg6+ {[%clk 0:00:02]} 53... Ke7 {[%clk 0:00:10.9]} 54.
Rxe6+ {[%clk 0:00:02.1]} 54... Kf8 {[%clk 0:00:10.3]} 55. Re8+ {[%clk 0:00:02]}
55... Kg7 {[%clk 0:00:10.3]} 56. Rg8+ {[%clk 0:00:02]} 56... Kf6 {[%clk
0:00:10.4]} 57. Rg6+ {[%clk 0:00:02.3]} 57... Ke5 {[%clk 0:00:09.9]} 58. Re6+
{[%clk 0:00:02.5]} 58... Kf4 {[%clk 0:00:08.7]} 59. Re4+ {[%clk 0:00:02.7]}
59... Rxe4 {[%clk 0:00:08.2]} 0-1